bitfinex/quotes_ETHUSD_20241130
["timestamp","ask_amount","ask_price","bid_price","bid_amount"]
[1733010596912,0.55,3712.1,3711.3,0.8065]
[1733010597179,0.38466981,3712.0,3711.3,0.8065]
[1733010597361,0.13496891,3712.0,3711.3,0.8065]
[1733010597539,0.13496891,3712.0,3711.4,0.02693963]
[1733010597737,0.2497009,3712.2,3711.3,0.8065]
[1733010597938,0.24961538,3712.1,3711.3,0.8065]
[1733010598681,0.79953806,3712.6,3711.3,0.8065]
[1733010598879,0.24953806,3712.5,3711.3,0.8065]
[1733010599081,0.40925187,3712.4,3711.3,0.8065]
[1733010599287,0.24953806,3712.3,3711.3,0.8065]
[1733010599584,0.24953806,3712.2,3711.3,0.8065]
[1733010599786,0.24953806,3712.3,3711.3,0.8065]
[1733010599982,0.24953806,3712.2,3711.3,0.8065]
[1733010600166,0.55,3712.2,3711.3,0.8065]
[1733010600374,0.24953806,3712.1,3711.3,0.8065]
[1733010600680,0.55,3712.2,3711.3,0.8065]
[1733010600841,0.55,3712.3,3711.3,0.8065]
[1733010601039,0.24947772,3712.1,3711.3,0.8065]
[1733010601250,0.55,3712.1,3711.3,0.8065]
[1733010601483,0.79947772,3712.1,3711.3,0.8065]
[1733010601662,0.55,3712.1,3711.3,0.8065]
[1733010601868,0.79947772,3712.2,3711.3,0.8065]
[1733010602041,0.24947772,3712.1,3711.3,0.8065]
[1733010603244,0.55,3712.2,3711.3,0.8065]
[1733010603448,0.24957449,3712.1,3711.3,0.8065]
[1733010603792,0.55,3711.9,3710.6,0.8051]
[1733010603947,0.55,3711.7,3710.6,0.8051]
[1733010604288,1.19498361,3711.8,3710.6,0.8051]
[1733010604289,0.55,3711.5,3710.6,0.8051]
[1733010604509,0.55,3711.3,3710.6,0.8051]
[1733010604847,0.55,3711.1,3709.7,0.8051]
[1733010605348,0.79957449,3711.1,3709.7,0.8051]
[1733010605573,0.70618745,3711.1,3709.7,0.8051]
[1733010605782,0.98274371,3711.1,3709.7,0.8051]
[1733010605978,0.55,3710.9,3709.7,3.8051]
[1733010606347,0.7623,3710.8,3709.7,0.8051]
[1733010606547,0.55,3710.7,3709.7,0.8051]
[1733010606749,0.55,3710.7,3709.7,3.36053216]
[1733010607114,0.24961561,3711.0,3709.8,0.8051]
[1733010607442,0.79961561,3710.9,3709.8,0.8051]
[1733010607611,0.55,3710.9,3709.8,3.8051]
[1733010607796,0.55,3711.0,3709.8,3.8051]
[1733010607989,0.24963942,3710.9,3709.8,3.8051]
[1733010608184,0.55,3711.0,3710.0,0.8051]
[1733010608826,0.55,3710.8,3710.0,0.8051]
[1733010609032,0.7575,3710.7,3709.5,0.7881]
[1733010609545,0.79966117,3710.6,3709.5,0.7881]
[1733010609728,0.24966117,3710.5,3709.5,0.7881]
[1733010609938,0.55,3710.4,3709.5,0.7881]
[1733010613358,0.79959403,3710.4,3709.5,0.7881]
[1733010613657,0.55,3710.4,3709.5,0.7881]
[1733010614108,0.79959591,3710.4,3709.6,0.02695408]
[1733010614310,0.55,3710.4,3709.6,0.02695408]
[1733010614587,0.55,3710.4,3709.5,0.7881]
[1733010616105,0.24959628,3710.6,3709.7,2.55543216]
[1733010616305,0.29418978,3711.1,3709.9,0.7881]
[1733010616306,0.7575,3711.0,3709.9,0.7881]
[1733010616534,0.24959979,3710.9,3709.9,0.7881]
[1733010616737,1.00709979,3710.8,3709.5,0.7881]
[1733010616948,1.00709979,3710.7,3709.5,0.7881]
[1733010617164,0.24959979,3710.6,3709.5,0.7881]
[1733010617373,0.24959979,3710.5,3709.5,0.7881]
[1733010617564,0.79959979,3710.4,3709.5,0.7881]
[1733010617859,0.70570998,3710.4,3709.6,0.02695377]
[1733010618045,0.70570998,3710.4,3709.5,0.7881]
[1733010618229,0.95530977,3710.4,3709.5,0.7881]
[1733010618434,0.70570998,3710.4,3709.5,0.7881]
[1733010618963,0.95530977,3710.4,3709.5,0.7881]
[1733010619164,0.70570998,3710.4,3709.6,0.02695407]
[1733010619519,0.95530977,3710.4,3709.6,0.02695407]
[1733010619773,0.70570998,3710.4,3709.5,0.7881]
[1733010620421,0.95518611,3710.4,3709.5,0.7881]
[1733010620766,0.70570998,3710.4,3709.5,0.7881]
[1733010624100,0.70570998,3710.4,3708.1,0.1]
[1733010624101,0.55,3710.2,3708.6,0.778]
[1733010624306,0.55,3710.0,3708.7,3.0]
[1733010627929,0.7656,3709.9,3708.7,3.0]
[1733010628505,0.7656,3709.9,3708.8,0.778]
[1733010629449,0.02692167,3710.6,3708.7,3.0]
[1733010629450,0.55,3710.2,3709.1,3.778]
[1733010629691,1.01497215,3710.3,3709.1,3.778]
[1733010629803,0.55,3710.5,3709.3,0.778]
[1733010630005,0.79937215,3710.5,3709.4,2.55543216]
[1733010630303,0.55,3710.5,3709.5,3.0]
[1733010630496,0.24927623,3710.8,3709.9,3.778]
[1733010630695,0.24927623,3711.0,3710.2,2.55543216]
[1733010630902,0.24927623,3711.0,3710.3,3.778]
[1733010631200,0.24927623,3711.0,3708.9,2.69621]
[1733010631201,0.7656,3711.0,3708.9,2.69621]
[1733010631429,0.15618745,3711.1,3709.0,3.778]
[1733010631430,0.7656,3710.8,3709.0,3.778]
[1733010631636,0.7656,3710.6,3709.0,3.778]
[1733010631842,0.55,3710.4,3709.0,3.778]
[1733010632025,0.24927623,3710.3,3709.0,3.778]
[1733010632228,1.56487623,3710.2,3709.0,3.778]
[1733010632547,0.05644172,3710.1,3709.4,3.778]
[1733010632750,0.57163257,3711.1,3709.4,3.778]
[1733010632751,0.24948566,3710.4,3709.4,3.778]
[1733010632921,0.05640632,3710.0,3709.4,3.778]
[1733010633098,0.79948759,3710.7,3709.4,3.778]
[1733010633099,0.55,3710.5,3709.4,3.778]
[1733010633304,0.05638719,3709.9,3709.4,3.778]
[1733010633555,0.02692167,3710.6,3709.4,3.778]
[1733010633757,0.05636807,3709.8,3709.0,3.0]
[1733010633923,0.24965238,3710.5,3709.0,3.0]
[1733010633924,0.7656,3709.9,3709.0,0.778]
[1733010634111,0.05626502,3709.7,3709.0,0.778]
[1733010634304,0.55,3709.8,3709.0,0.778]
[1733010634305,0.05628415,3709.8,3709.0,0.778]
[1733010634532,0.05624589,3709.6,3709.0,0.778]
[1733010634735,0.7656,3709.9,3709.0,0.778]
[1733010635053,0.05622676,3709.5,3709.0,0.778]
[1733010635206,0.24969135,3709.8,3709.0,0.778]
[1733010635408,0.7656,3709.9,3709.0,0.778]
[1733010635605,0.24972002,3709.8,3709.0,0.778]
[1733010635801,0.7656,3709.9,3709.0,0.778]
[1733010636002,0.24971976,3709.8,3708.6,3.0]
[1733010636235,0.14147636,3709.8,3708.7,0.778]
[1733010636733,0.24973117,3709.7,3708.7,0.778]
[1733010637044,0.14147636,3709.8,3708.7,0.778]
[1733010637288,0.24973062,3709.7,3708.7,0.778]
[1733010637493,0.14147636,3709.8,3708.7,0.778]
[1733010637693,0.24974718,3709.7,3708.7,0.778]
[1733010637864,0.14147636,3709.8,3708.7,0.778]
[1733010638270,0.24974737,3709.7,3708.7,0.778]
[1733010638595,0.7656,3709.9,3708.7,0.778]
[1733010638795,0.24977707,3709.8,3708.7,0.778]
[1733010639094,0.7656,3709.9,3708.7,0.778]
[1733010639395,0.24979295,3709.8,3708.7,0.778]
[1733010639693,0.24979295,3709.7,3708.7,0.778]
[1733010639852,0.14148367,3709.8,3708.7,0.778]
[1733010639853,0.16840534,3709.8,3708.7,0.778]
[1733010640053,0.24979196,3709.7,3708.7,0.778]
[1733010640253,0.05662933,3709.7,3708.7,0.778]
[1733010640453,0.05662933,3709.7,3708.3,0.778]
[1733010640454,0.7656,3709.5,3708.3,0.778]
[1733010640655,0.55,3709.4,3708.3,0.778]
[1733010641124,0.05655287,3709.3,3708.3,0.778]
[1733010641534,0.05655287,3709.3,3708.7,0.7553]
[1733010641828,1.16774091,3710.3,3709.1,0.7553]
[1733010642035,0.24976826,3710.2,3709.1,0.7553]
[1733010642211,0.24976826,3710.1,3709.1,0.7553]
[1733010642526,0.24976826,3710.0,3709.1,0.7553]
[1733010642733,0.24976826,3709.9,3708.8,0.7553]
[1733010642951,0.42656258,3710.2,3708.8,0.7553]
[1733010643237,0.7681,3709.7,3708.8,0.7553]
[1733010643392,0.90557535,3709.7,3708.6,3.0]
[1733010644092,0.90557535,3709.7,3708.4,0.7553]
[1733010644093,0.7681,3709.4,3708.4,0.7553]
[1733010644325,0.55,3709.3,3708.4,0.7553]
[1733010644631,0.60656789,3709.3,3708.4,0.7553]
[1733010646313,0.55,3709.3,3708.4,0.7553]
[1733010646828,0.7681,3709.4,3708.4,0.7553]
[1733010647391,0.7681,3709.4,3708.5,2.55543216]
[1733010647586,0.7681,3709.4,3708.6,3.0]
[1733010653222,0.7681,3709.4,3708.4,0.7553]
[1733010653444,0.7681,3709.4,3708.2,0.949651]
[1733010654007,0.55,3709.3,3708.2,0.949651]
[1733010655655,0.7681,3709.4,3709.0,3.0]
[1733010655804,1.11576831,3710.6,3709.0,3.0]
[1733010655805,0.7681,3709.7,3709.0,3.0]
[1733010656023,0.05593578,3709.6,3709.0,3.0]
[1733010656310,0.7681,3709.7,3709.0,3.0]
[1733010658361,0.7681,3709.7,3708.7,0.7553]
[1733010658907,0.7681,3709.7,3708.5,5.55543216]
[1733010660113,0.7681,3709.7,3708.5,8.25192216]
[1733010660405,0.7681,3709.7,3708.2,0.949651]
[1733010660406,0.7681,3709.7,3709.0,3.7553]
[1733010661307,0.55,3709.6,3708.6,3.0]
[1733010661512,0.7557,3709.5,3708.6,3.0]
[1733010661756,2.67175287,3710.4,3708.6,3.0]
[1733010661757,0.7557,3709.3,3708.6,3.0]
[1733010662041,0.7557,3709.3,3708.2,1.715451]
[1733010662042,0.05592444,3709.2,3708.2,4.715451]
[1733010662414,0.9112621,3709.3,3708.2,4.715451]
[1733010663046,0.7557,3709.3,3708.6,3.0]
[1733010666117,0.7557,3709.3,3708.2,3.949651]
[1733010666461,0.56826399,3710.0,3708.2,3.949651]
[1733010666668,1.22641554,3709.9,3708.2,3.949651]
[1733010666863,0.55,3709.7,3708.2,3.949651]
[1733010667161,0.55,3709.5,3708.2,3.949651]
[1733010667461,0.55,3709.3,3708.2,3.949651]
[1733010667665,0.24977222,3709.2,3708.2,3.949651]
[1733010667819,0.55,3709.6,3708.2,3.949651]
[1733010668023,0.55,3709.4,3708.2,3.949651]
[1733010668270,0.33259589,3709.3,3708.2,3.949651]
[1733010668475,0.24975949,3709.2,3708.2,3.949651]
[1733010668668,0.18111759,3709.8,3708.2,3.949651]
[1733010668669,0.9764805,3709.6,3708.2,3.949651]
[1733010668973,0.55,3709.4,3708.2,3.949651]
[1733010669267,0.30563818,3709.3,3708.2,3.949651]
[1733010669425,0.24972345,3709.2,3708.2,3.949651]
[1733010669626,0.7557,3709.1,3708.2,3.949651]
[1733010670278,0.7557,3709.1,3708.6,3.0]
[1733010671174,0.7557,3709.1,3708.2,0.949651]
[1733010671375,0.7557,3709.1,3708.2,3.949651]
[1733010671872,0.7557,3709.1,3708.2,0.949651]
[1733010673377,0.7557,3709.1,3708.6,3.0]
[1733010673729,0.39949421,3709.9,3708.7,0.02695998]
[1733010673930,1.67365247,3710.6,3709.1,0.7658]
[1733010673931,1.00537116,3709.8,3709.1,0.7658]
[1733010674169,0.7557,3709.8,3709.1,0.7658]
[1733010674575,0.7557,3709.8,3709.0,3.0]
[1733010675221,0.7557,3709.8,3708.5,3.32123216]
[1733010675511,1.55527836,3709.7,3708.6,3.0]
[1733010675808,1.3057,3709.7,3708.6,3.0]
[1733010676010,1.3057,3709.7,3708.3,3.0]
[1733010676212,0.24955717,3709.6,3708.7,3.0]
[1733010676519,1.3057,3709.7,3708.7,3.0]
[1733010676667,0.24956241,3709.6,3708.7,3.0]
[1733010676866,1.3057,3709.7,3708.7,3.0]
[1733010677097,0.24956462,3709.6,3708.7,3.0]
[1733010677417,1.3057,3709.7,3708.7,3.0]
[1733010677570,1.00520671,3709.6,3708.7,3.0]
[1733010677766,0.7557,3709.6,3708.7,3.0]
[1733010677966,0.05294541,3709.5,3708.3,3.0]
[1733010678210,0.7557,3709.6,3708.2,4.27088316]
[1733010678211,0.7557,3709.3,3708.2,4.27088316]
[1733010678417,0.05244579,3709.2,3708.2,4.27088316]
[1733010678582,0.7557,3709.3,3708.2,4.27088316]
[1733010679305,0.7557,3709.3,3708.3,3.0]
[1733010680783,0.02692167,3709.6,3708.3,2.99]
[1733010680784,0.55,3709.5,3708.3,2.99]
[1733010680971,0.55,3709.3,3708.3,2.99]
[1733010681315,0.7557,3709.0,3708.3,2.99]
[1733010684497,0.7557,3709.0,3708.2,0.949651]
[1733010685869,0.7557,3709.0,3708.4,3.0]
[1733010689302,0.7557,3709.0,3708.2,0.949651]
[1733010691718,0.7557,3709.0,3708.4,3.0]
[1733010691919,0.7557,3709.0,3708.4,3.7723]
[1733010692125,1.00682487,3709.8,3708.4,6.46887]
[1733010692322,0.24952487,3709.7,3708.4,6.46887]
[1733010692548,0.0525877,3709.7,3708.4,6.46887]
[1733010692737,0.7573,3709.8,3708.8,3.0]
[1733010693105,0.55,3709.7,3708.8,3.0]
[1733010693399,0.7573,3709.8,3708.8,3.0]
[1733010693598,0.7573,3709.8,3708.9,0.7723]
[1733010694159,0.7573,3709.8,3709.2,3.0]
[1733010694669,1.40586197,3710.7,3709.6,3.0]
[1733010694813,0.24939131,3710.6,3709.6,3.0]
[1733010695012,0.7573,3710.7,3709.6,3.0]
[1733010695265,0.05289642,3710.6,3709.6,3.0]
[1733010695445,0.7573,3710.5,3709.4,3.0]
[1733010695630,0.05285818,3710.4,3709.4,3.0]
[1733010695816,0.7573,3710.5,3709.2,3.0]
[1733010696023,0.7573,3710.5,3709.4,2.69585]
[1733010696234,0.7573,3710.5,3709.5,5.69573]
[1733010696536,0.7573,3710.5,3709.5,8.25116216]
[1733010697659,0.24901877,3711.0,3709.5,8.25116216]
[1733010697660,0.24901877,3711.0,3710.0,2.55543216]
[1733010697836,0.7573,3710.8,3710.3,3.0]
[1733010698253,0.7573,3710.8,3710.1,3.0]
[1733010698448,0.24904242,3711.2,3710.0,2.55543216]
[1733010698449,0.24904242,3711.2,3710.7,2.69489]
[1733010698650,0.24904242,3711.2,3710.8,5.69483]
[1733010698854,0.24904242,3711.2,3710.8,8.25026216]
[1733010699690,0.24904242,3711.2,3710.8,5.55543216]
[1733010699839,2.42e-06,3711.2,3711.1,5.69461]
[1733010700039,2.42e-06,3711.2,3711.1,6.46691]
[1733010700474,0.5,3711.3,3711.2,5.69454]
[1733010700475,2.42e-06,3711.3,3711.2,5.69454]
[1733010700856,2.42e-06,3711.3,3711.2,8.24997216]
[1733010704292,2.42e-06,3711.3,3711.2,5.55543216]
[1733010704597,2.42e-06,3711.3,3710.8,2.55543216]
[1733010704743,0.04854533,3711.2,3710.8,2.55543216]
[1733010705119,2.42e-06,3711.3,3710.8,2.55543216]
[1733010705389,2.42e-06,3711.3,3710.9,2.69474]
[1733010705594,2.42e-06,3711.3,3710.8,2.55543216]
[1733010705944,2.42e-06,3711.3,3710.9,3.0]
[1733010708755,2.42e-06,3711.3,3710.4,2.55543216]
[1733010709061,2.42e-06,3711.3,3710.5,3.0]
[1733010710602,2.42e-06,3711.3,3710.9,3.0]
[1733010713034,2.42e-06,3711.3,3711.2,2.55543216]
[1733010713324,2.42e-06,3711.3,3711.2,5.55543216]
[1733010717832,0.76340242,3711.3,3710.8,2.55543216]
[1733010719097,0.76340242,3711.3,3710.9,3.0]
[1733010721303,2.42e-06,3711.3,3710.9,3.0]
[1733010721504,2.42e-06,3711.3,3711.2,5.55543216]
[1733010721852,2.42e-06,3711.3,3711.2,8.24997216]
[1733010726471,2.42e-06,3711.3,3711.2,5.55543216]
[1733010726636,2.42e-06,3711.3,3710.9,3.0]
[1733010727805,2.42e-06,3711.3,3710.5,5.69504]
[1733010728325,2.42e-06,3711.3,3710.8,3.0]
[1733010728524,2.42e-06,3711.3,3710.8,5.55543216]
[1733010729737,2.42e-06,3711.3,3710.3,3.7842]
[1733010729936,2.42e-06,3711.3,3710.5,3.0]
[1733010730136,2.42e-06,3711.3,3710.5,5.69504]
[1733010731483,2.42e-06,3711.3,3710.8,3.0]
[1733010732083,2.42e-06,3711.3,3710.9,0.81114146]
[1733010732287,2.42e-06,3711.3,3711.1,3.0]
[1733010732430,2.42e-06,3711.3,3710.9,3.7842]
[1733010732637,2.42e-06,3711.3,3710.9,3.0]
[1733010733285,0.7876,3711.2,3710.9,3.0]
[1733010734653,2.42e-06,3711.3,3710.9,3.7842]
[1733010734838,2.42e-06,3711.3,3711.2,3.0]
[1733010735936,2.42e-06,3711.3,3711.2,5.55543216]
[1733010736094,2.42e-06,3711.3,3711.2,8.27691141]
[1733010736296,2.42e-06,3711.3,3711.2,9.03417216]
[1733010736491,2.42e-06,3711.3,3711.2,6.47874]
[1733010736713,0.02692167,3714.0,3711.6,2.69424]
[1733010737028,0.24932427,3713.9,3712.0,3.0]
[1733010737323,0.27624594,3713.8,3711.8,5.69407]
[1733010737535,0.24932427,3713.7,3711.8,3.02693316]
[1733010737822,0.24932427,3713.6,3712.2,3.0]
[1733010737978,0.24932427,3713.5,3712.2,2.6938]
[1733010738182,0.24932427,3713.4,3712.2,3.0]
[1733010738422,0.02692167,3714.4,3712.2,3.02692955]
[1733010738717,0.02692167,3714.4,3712.4,3.0]
[1733010738718,0.55593883,3714.3,3712.4,3.0]
[1733010739223,0.24905602,3714.2,3712.2,3.0]
[1733010739387,0.29766529,3714.1,3712.2,5.69379]
[1733010739718,0.29766529,3714.1,3712.6,3.0]
[1733010739719,0.7876,3713.9,3712.6,3.0]
[1733010739926,0.24905602,3713.8,3712.6,3.0]
[1733010740098,0.24905602,3713.7,3712.6,3.0]
[1733010740281,0.04805332,3713.8,3712.6,3.0]
[1733010740487,0.7876,3713.7,3712.5,3.0]
[1733010740722,0.7876,3713.7,3712.2,3.0]
[1733010741032,0.7876,3713.7,3712.5,5.55543216]
[1733010741214,0.7876,3713.7,3712.9,5.55543216]
[1733010741523,0.7876,3713.7,3712.6,3.0]
[1733010742123,0.7876,3713.7,3712.8,3.0]
[1733010743042,0.7876,3713.7,3712.7,3.0]
[1733010744996,0.7944,3714.3,3713.5,3.0]
[1733010745235,0.04816294,3714.2,3713.2,3.0]
[1733010745396,0.7944,3714.1,3712.8,3.0]
[1733010745602,2.69174,3715.1,3712.8,3.0]
[1733010745603,0.82132167,3714.0,3712.8,3.0]
[1733010745841,0.7944,3713.8,3712.4,3.0]
[1733010746013,0.7944,3713.6,3711.9,2.55543216]
[1733010746213,0.7944,3713.4,3711.9,2.55543216]
[1733010746443,0.04819131,3713.3,3711.9,2.55543216]
[1733010746649,0.7944,3713.3,3711.9,2.58236257]
[1733010746859,0.04817097,3713.2,3711.9,5.82542843]
[1733010747013,0.7944,3713.3,3711.9,5.82542843]
[1733010747356,0.7944,3713.3,3712.0,3.0]
[1733010748354,0.7944,3713.3,3711.9,2.55543216]
[1733010748520,0.7944,3713.3,3711.5,5.24974216]
[1733010748717,0.7944,3713.3,3711.6,0.02693311]
[1733010749262,0.82132167,3713.2,3711.5,2.55543216]
[1733010749429,0.82132167,3713.2,3711.3,3.45316]
[1733010749625,0.82132167,3713.2,3711.6,3.0]
[1733010750258,0.7944,3713.2,3711.6,3.0]
[1733010750567,0.84250811,3713.1,3711.6,3.0]
[1733010750770,0.7944,3712.9,3711.1,2.55543216]
[1733010751056,0.7944,3712.7,3711.1,2.55543216]
[1733010751412,0.7944,3712.5,3711.1,2.55543216]
[1733010751617,0.7944,3712.5,3711.1,5.25003216]
[1733010751813,0.7944,3712.5,3711.4,3.0]
[1733010752042,0.7944,3712.5,3711.6,3.0]
[1733010752658,0.7944,3712.5,3712.0,3.0]
[1733010755495,0.7944,3712.5,3711.6,3.0]
[1733010757451,0.7944,3712.5,3711.1,0.54684825]
[1733010757649,0.7944,3712.5,3711.1,3.24144825]
[1733010758449,0.7944,3712.5,3711.1,0.54684825]
[1733010758754,0.7944,3712.5,3711.1,3.54684825]
[1733010759272,0.7944,3712.5,3711.1,3.0]
[1733010759588,0.7944,3712.3,3711.1,3.0]
[1733010759953,0.7944,3712.3,3711.0,2.55543216]
[1733010760285,0.7944,3712.1,3711.0,2.55543216]
[1733010761192,0.7944,3712.1,3711.1,3.0]
[1733010762510,0.7944,3712.1,3710.7,3.54942656]
[1733010762879,0.7944,3712.1,3710.7,3.57636606]
[1733010763277,0.7944,3712.1,3710.7,3.54942656]
[1733010765467,0.04755402,3712.0,3710.7,3.54942656]
[1733010765787,0.02692167,3712.4,3710.7,3.54942656]
[1733010765788,0.8064,3711.9,3710.7,3.54942656]
[1733010766097,0.85393491,3711.9,3710.7,3.54942656]
[1733010766481,0.8064,3711.9,3710.7,3.57636813]
[1733010768516,0.8064,3711.9,3710.7,3.47636813]
[1733010768719,0.8064,3711.9,3710.7,6.17124813]
[1733010768917,0.8064,3711.9,3710.7,6.14430656]
[1733010769842,0.8064,3711.9,3710.7,3.44942656]
[1733010773539,0.8064,3711.9,3710.7,3.47636762]
[1733010774823,0.8064,3711.9,3710.7,3.44942656]
[1733010778862,0.0450183,3711.8,3710.7,3.0]
[1733010779012,0.8064,3711.6,3710.2,0.7944]
[1733010779227,0.8064,3711.4,3710.2,1.32490025]
[1733010779634,0.8064,3711.4,3710.2,0.7944]
[1733010780039,0.8064,3711.2,3710.2,0.7944]
[1733010780448,0.8064,3711.2,3710.3,6.48779]
[1733010780655,0.8064,3711.2,3710.3,3.7926]
[1733010780857,0.8064,3711.2,3710.3,3.0]
[1733010782380,0.8064,3711.2,3710.6,3.0]
[1733010784561,0.8064,3711.2,3710.3,3.0]
[1733010784764,0.8064,3711.2,3710.3,5.69518]
[1733010785281,0.8064,3711.2,3710.2,0.7944]
[1733010785654,0.8064,3711.2,3710.1,0.54598088]
[1733010785854,0.8064,3711.2,3710.1,1.35238088]
[1733010786064,0.8064,3711.2,3710.1,0.8064]
[1733010790350,0.8064,3711.2,3710.1,3.8064]
[1733010793658,0.8064,3711.2,3710.1,3.50169]
[1733010793858,0.8064,3711.2,3710.6,3.0]
[1733010795704,0.8064,3711.2,3710.2,3.0]
[1733010796573,0.8064,3711.2,3710.1,0.8064]
[1733010796903,0.758,3711.0,3709.9,0.52941651]
[1733010797075,0.04323144,3710.9,3709.9,0.52941651]
[1733010797273,0.758,3710.8,3709.9,0.52941651]
[1733010797578,0.80113441,3710.7,3709.8,0.8064]
[1733010797883,0.80113441,3710.7,3709.3,2.55543216]
[1733010798087,0.758,3710.7,3709.4,3.0]
[1733010798261,0.758,3710.7,3709.6,0.801135]
[1733010798964,0.02692167,3710.6,3709.3,3.10173501]
[1733010799174,0.758,3710.7,3709.4,0.758]
[1733010799385,0.78492167,3710.6,3709.4,0.758]
[1733010799593,0.82794813,3710.6,3709.4,0.758]
[1733010799785,0.78492167,3710.6,3709.4,0.758]
[1733010800115,0.758,3710.6,3709.4,0.758]
[1733010800470,0.758,3710.6,3709.4,6.45383]
[1733010800672,0.758,3710.6,3709.8,3.0]
[1733010800990,0.758,3710.6,3710.0,3.0]
[1733010801189,0.758,3710.6,3710.2,3.0]
[1733010803479,0.758,3710.6,3709.4,3.758]
[1733010803815,0.758,3710.6,3709.4,6.45385]
[1733010805020,0.758,3710.6,3709.6,0.52902292]
[1733010805176,0.758,3710.6,3709.4,3.758]
[1733010806478,0.758,3710.6,3709.8,3.0]
[1733010806677,0.758,3710.6,3710.2,3.0]
[1733010807002,0.7525,3711.3,3710.4,3.0]
[1733010807720,0.7525,3711.3,3710.2,3.0269447]
[1733010809101,0.7525,3711.3,3710.2,5.7221747]
[1733010809307,0.7525,3711.3,3710.2,5.69523]
[1733010810277,0.7525,3711.3,3710.3,2.69518]
[1733010810478,0.7525,3711.3,3710.2,3.55261426]
[1733010811378,0.7525,3711.3,3710.2,6.24788426]
[1733010812418,0.7525,3711.3,3710.2,3.0]
[1733010813506,0.7525,3711.3,3710.0,3.0]
[1733010815127,0.2485873,3711.2,3709.8,3.0]
[1733010815396,1.38001275,3712.0,3709.8,3.0]
[1733010815397,0.7525,3711.0,3709.8,3.0]
[1733010818707,0.7525,3711.0,3709.6,0.54316035]
[1733010818708,0.7525,3711.0,3709.6,3.54316035]
[1733010818910,0.8272,3710.9,3709.6,3.54316035]
[1733010819114,0.8272,3710.9,3709.6,3.57010879]
[1733010819316,0.8272,3710.9,3709.6,6.23886035]
[1733010820430,0.8272,3710.9,3709.6,3.54316035]
[1733010821343,0.8272,3710.9,3709.6,6.23885035]
[1733010822109,0.8272,3710.9,3709.6,3.54316035]
[1733010822305,0.8272,3710.9,3709.6,3.0]
[1733010823251,0.8272,3710.9,3709.5,2.55543216]
[1733010823419,0.8041,3710.7,3709.4,1.28970439]
[1733010823605,0.8041,3710.5,3709.4,1.28970439]
[1733010823805,0.8041,3710.5,3709.4,0.758]
[1733010824429,0.8041,3710.5,3709.4,3.758]
[1733010824707,0.8041,3710.5,3709.4,0.758]
[1733010826307,0.8041,3710.5,3709.5,3.0]
[1733010828137,0.8041,3710.5,3709.4,0.758]
[1733010828340,0.8041,3710.5,3709.4,3.758]
[1733010828540,0.8041,3710.5,3709.5,3.0]
[1733010830962,0.8041,3710.5,3709.4,3.758]
[1733010831853,0.55,3710.4,3709.4,0.758]
[1733010832020,0.8041,3710.1,3708.7,2.69635]
[1733010832358,0.8041,3710.1,3709.2,0.8303]
[1733010832567,0.8041,3709.9,3709.2,0.8303]
[1733010832913,0.04081048,3709.8,3709.2,0.8303]
[1733010833118,0.13541,3710.0,3709.2,0.8303]
[1733010833119,0.8041,3709.7,3709.2,0.8303]
[1733010833330,0.04078694,3709.6,3709.2,0.8303]
[1733010833530,0.8041,3709.7,3709.2,0.8303]
[1733010834226,0.04080165,3709.6,3709.2,0.8303]
[1733010834749,0.8041,3709.7,3709.2,0.8303]
[1733010834961,0.04080165,3709.6,3709.2,0.8303]
[1733010835133,0.8041,3709.9,3709.2,0.8303]
[1733010837343,0.8041,3709.7,3709.2,0.8303]
[1733010837560,0.04077223,3709.6,3709.2,0.8303]
[1733010837833,0.8041,3709.5,3709.2,0.8303]
[1733010838240,0.04073397,3709.4,3709.2,0.8303]
[1733010838433,0.8041,3709.5,3708.7,3.0]
[1733010838634,0.94649328,3710.9,3708.7,3.0]
[1733010838635,0.8041,3710.5,3709.3,3.0]
[1733010838835,0.8041,3710.5,3709.1,3.0]
[1733010839846,0.8041,3710.3,3708.8,3.8303]
[1733010840054,0.8041,3710.1,3708.8,3.0]
[1733010840379,0.8041,3710.1,3708.7,0.8041]
[1733010840674,0.93951,3710.1,3708.7,0.83105524]
[1733010841106,0.93951,3710.1,3708.7,0.8041]
[1733010841885,0.7864,3709.9,3708.7,0.8041]
[1733010842392,0.7864,3709.7,3708.7,0.8041]
[1733010842897,0.7864,3709.5,3708.7,0.8041]
[1733010843249,0.7864,3709.5,3709.0,2.55111206]
[1733010843584,0.7864,3709.5,3709.1,3.0]
[1733010844295,0.7864,3709.8,3709.1,3.0]
[1733010845990,0.7864,3709.8,3708.7,3.8041]
[1733010846169,0.7864,3709.8,3708.7,4.35134865]
[1733010846489,0.7864,3709.8,3708.7,7.04769865]
[1733010846701,0.7864,3709.8,3708.7,3.8041]
[1733010846851,0.7864,3709.8,3708.7,0.8041]
[1733010848173,0.27468473,3710.3,3708.7,0.8041]
[1733010848174,0.7864,3709.6,3708.7,0.8041]
[1733010851609,0.55,3709.3,3708.7,0.8041]
[1733010851834,0.7864,3709.2,3708.7,0.8041]
[1733010852032,0.82684134,3709.2,3708.7,0.8041]
[1733010852828,0.82684134,3709.2,3708.1,3.0]
[1733010853029,0.82684134,3709.2,3708.2,0.826841]
[1733010853336,0.7864,3709.2,3708.2,0.826841]
[1733010853540,0.82646988,3709.1,3708.2,0.826841]
[1733010853715,0.85339155,3709.1,3708.2,0.826841]
[1733010854055,0.7864,3709.1,3708.2,0.826841]
[1733010854810,0.04001151,3709.0,3708.2,0.826841]
[1733010855011,0.55,3709.3,3708.2,0.826841]